fUST/lending_fUST_20260616
["ID","MTS","AMOUNT","RATE_DAILY","PERIOD"]
[425216250,1781609432000,-160.0,0.00020569,2]
[425216251,1781609432000,-277.394385,0.00020569,2]
[425216256,1781609432000,-165.034348,0.00020569,2]
[425216246,1781609432000,-203.80392407,0.00020569,2]
[425216247,1781609432000,-160.0,0.00020569,2]
[425216249,1781609432000,-703.72154,0.00020569,2]
[425216248,1781609432000,-431.86077,0.00020569,2]
[425216257,1781609432000,-283.80723388,0.00020604,2]
[425216245,1781609432000,-1106.78,0.00020569,2]
[425216255,1781609432000,-162.517174,0.00020569,2]
[425216244,1781609432000,-364.527608,0.00020515,2]
[425216240,1781609432000,-51.08488853,0.000205,2]
[425216229,1781609432000,-500.0,0.00020364,2]
[425216239,1781609432000,-1214.22111147,0.000205,2]
[425216243,1781609432000,-1324.68,0.000205,2]
[425216252,1781609432000,-394.788771,0.00020569,2]
[425216232,1781609432000,-160.0,0.000204,3]
[425216242,1781609432000,-1324.682,0.000205,2]
[425216236,1781609432000,-193.4191471,0.000205,2]
[425216238,1781609432000,-1265.306,0.000205,2]
[425216226,1781609432000,-457.5797583,0.00019479,2]
[425216231,1781609432000,-538.83736883,0.00020364,2]
[425216234,1781609432000,-279.949257,0.0002048,2]
[425216235,1781609432000,-1000.0,0.00020498,5]
[425216237,1781609432000,-807.6061,0.000205,2]
[425216241,1781609432000,-1265.3,0.000205,2]
[425216233,1781609432000,-410.131238,0.00020438,2]
[425216359,1781609440000,-457.8414585,0.00020604,2]
[425216378,1781609440000,-500.0,0.00020635,2]
[425216376,1781609440000,-502.26457027,0.00020635,2]
[425216374,1781609440000,-500.0,0.00020635,2]
[425216362,1781609440000,-500.84930981,0.00020635,2]
[425216361,1781609440000,-500.0,0.00020635,2]
[425216366,1781609440000,-500.0,0.00020635,2]
[425216364,1781609440000,-500.0,0.00020635,2]
[425216357,1781609440000,-457.8414585,0.00020604,2]
[425216351,1781609440000,-457.8414585,0.00020604,2]
[425216341,1781609440000,-174.03422462,0.00020604,2]
[425216343,1781609440000,-326.8286358,0.00020604,2]
[425216355,1781609440000,-326.8286358,0.00020604,2]
[425216353,1781609440000,-457.8414585,0.00020604,2]
[425216349,1781609440000,-326.4475392,0.00020604,2]
[425216370,1781609440000,-500.0,0.00020635,2]
[425216347,1781609440000,-326.8286358,0.00020604,2]
[425216345,1781609440000,-157.6114129,0.00020604,2]
[425216330,1781609440000,-231.25043975,0.00017105,2]
[425216332,1781609440000,-168.77051447,0.00020485,2]
[425216339,1781609440000,-134.92911853,0.00020485,2]
[425216372,1781609440000,-551.21027201,0.00020635,2]
[425216368,1781609440000,-500.0,0.00020635,2]
[425216382,1781609440000,-500.0,0.00020635,2]
[425216380,1781609440000,-500.0,0.00020635,2]
[425216423,1781609440000,-500.0,0.00020635,2]
[425216422,1781609440000,-500.0,0.00020635,2]
[425216424,1781609440000,-500.0,0.00020635,2]
[425216421,1781609440000,-500.0,0.00020635,2]
[425216415,1781609440000,-500.0,0.00020635,2]
[425216413,1781609440000,-500.0,0.00020635,2]
[425216419,1781609440000,-500.0,0.00020635,2]
[425216411,1781609440000,-500.0,0.00020635,2]
[425216409,1781609440000,-500.0,0.00020635,2]
[425216398,1781609440000,-500.0,0.00020635,2]
[425216417,1781609440000,-500.0,0.00020635,2]
[425216403,1781609440000,-500.0,0.00020635,2]
[425216396,1781609440000,-500.0,0.00020635,2]
[425216386,1781609440000,-286.52109623,0.00020635,2]
[425216388,1781609440000,-500.0,0.00020635,2]
[425216390,1781609440000,-500.0,0.00020635,2]
[425216400,1781609440000,-500.0,0.00020635,2]
[425216384,1781609440000,-500.0,0.00020635,2]
[425216394,1781609440000,-500.0,0.00020635,2]
[425216407,1781609440000,-500.0,0.00020635,2]
[425216406,1781609440000,-500.0,0.00020635,2]
[425216392,1781609440000,-500.0,0.00020635,2]
[425216443,1781609441000,-500.0,0.00020635,2]
[425216445,1781609441000,-500.0,0.00020635,2]
[425216447,1781609441000,-500.0,0.00020635,2]
[425216448,1781609441000,-500.0,0.00020635,2]
[425216457,1781609441000,-500.0,0.00020635,2]
[425216456,1781609441000,-500.0,0.00020635,2]
[425216446,1781609441000,-500.0,0.00020635,2]
[425216442,1781609441000,-500.0,0.00020635,2]
[425216444,1781609441000,-500.0,0.00020635,2]
[425216441,1781609441000,-500.0,0.00020635,2]
[425216427,1781609441000,-611.92978071,0.00020635,2]
[425216439,1781609441000,-500.0,0.00020635,2]
[425216437,1781609441000,-500.0,0.00020635,2]
[425216438,1781609441000,-500.0,0.00020635,2]
[425216433,1781609441000,-500.0,0.00020635,2]
[425216434,1781609441000,-500.0,0.00020635,2]
[425216436,1781609441000,-500.0,0.00020635,2]
[425216431,1781609441000,-500.0,0.00020635,2]
[425216430,1781609441000,-500.0,0.00020635,2]
[425216426,1781609441000,-500.0,0.00020635,2]
[425216428,1781609441000,-500.0,0.00020635,2]
[425216440,1781609441000,-500.0,0.00020635,2]
[425216449,1781609441000,-500.0,0.00020635,2]
[425216452,1781609441000,-500.0,0.00020635,2]
[425216450,1781609441000,-152.92921127,0.00020635,2]
[425216451,1781609441000,-500.0,0.00020635,2]
[425216475,1781609441000,-4863.71438205,0.00020637,2]
[425216474,1781609441000,-1731.35327467,0.00020637,2]
[425216473,1781609441000,-81335.62256248,0.00020637,2]
[425216471,1781609441000,-489.9759078,0.00020636,2]
[425216472,1781609441000,-500.0,0.00020636,2]
[425216470,1781609441000,-500.0,0.00020636,2]
[425216469,1781609441000,-500.0,0.00020635,2]
[425216459,1781609441000,-500.0,0.00020635,2]
[425216463,1781609441000,-500.0,0.00020635,2]
[425216462,1781609441000,-500.0,0.00020635,2]
[425216465,1781609441000,-500.0,0.00020635,2]
[425216464,1781609441000,-500.0,0.00020635,2]
[425216466,1781609441000,-200.0,0.00020635,2]
[425216468,1781609441000,-500.0,0.00020635,2]
[425216453,1781609441000,-500.0,0.00020635,2]
[425216461,1781609441000,-500.0,0.00020635,2]
[425216467,1781609441000,-500.0,0.00020635,2]
[425216458,1781609441000,-500.0,0.00020635,2]
[425216454,1781609441000,-500.0,0.00020635,2]
[425216455,1781609441000,-500.0,0.00020635,2]
[425216460,1781609441000,-500.0,0.00020635,2]
[425216497,1781609444000,-797.9436118,0.00020637,2]
[425216495,1781609444000,-74.2748216,0.00020637,2]
[425216494,1781609444000,-426.4051784,0.00020629,2]
[425216496,1781609444000,-418.93857618,0.00020637,2]
[425216508,1781609446000,-24126.53312678,0.00020637,2]
[425216507,1781609446000,-16729.99999984,0.00020637,2]
[425216511,1781609529000,-322.63453393,0.00019924,2]
[425216559,1781610632000,-10409.976802,0.0001931,2]
[425216561,1781610632000,-466.082414,0.0001952,2]
[425216567,1781610632000,-300.0,0.00019695,2]
[425216566,1781610632000,-300.0,0.00019695,2]
[425216564,1781610632000,-300.0,0.00019695,2]
[425216568,1781610632000,-300.0,0.00019695,2]
[425216565,1781610632000,-300.0,0.00019695,2]
[425216563,1781610632000,-300.0,0.00019695,2]
[425216569,1781610632000,-300.0,0.00019695,2]
[425216556,1781610632000,-186.0,0.00019028,2]
[425216570,1781610632000,-300.0,0.00019695,2]
[425216572,1781610632000,-300.0,0.00019695,2]
[425216571,1781610632000,-300.0,0.00019695,2]
[425216573,1781610632000,-300.0,0.00019695,2]
[425216574,1781610632000,-300.0,0.00019695,2]
[425216586,1781610632000,-131.89039935,0.00019782,2]
[425216585,1781610632000,-457.8414585,0.00019782,2]
[425216578,1781610632000,-742.96640778,0.00019695,2]
[425216579,1781610632000,-3270.57213367,0.00019695,2]
[425216581,1781610632000,-383.01543567,0.00019695,2]
[425216575,1781610632000,-300.0,0.00019695,2]
[425216582,1781610632000,-326.5581135,0.00019782,2]
[425216583,1781610632000,-456.7166948,0.00019782,2]
[425216577,1781610632000,-300.0,0.00019695,2]
[425216576,1781610632000,-300.0,0.00019695,2]
[425216580,1781610632000,-294.31423485,0.00019695,2]
[425216584,1781610632000,-326.8286358,0.00019782,2]
[425216599,1781610639000,-462.9585961,0.00019782,2]
[425216600,1781610639000,-326.8286358,0.00019782,2]
[425216602,1781610639000,-326.8286358,0.00019782,2]
[425216601,1781610639000,-454.3393756,0.00019782,2]
[425216603,1781610639000,-457.3076407,0.00019782,2]
[425216606,1781610639000,-387.11262179,0.00020088,2]
[425216605,1781610639000,-326.8286358,0.00019782,2]
[425216604,1781610639000,-457.8414585,0.00019782,2]
[425216598,1781610639000,-194.93823645,0.00019782,2]
[425216610,1781610641000,-212.88737821,0.00020088,2]
[425216612,1781610642000,-415.519,0.00020201,2]
[425216611,1781610642000,-93.82199699,0.00020201,2]
[425216621,1781610644000,-261.1944965,0.00020201,2]
[425216631,1781610648000,-500.0,0.00020235,2]
[425216625,1781610648000,-1547.53172225,0.00020201,2]
[425216634,1781610648000,-1310.28237855,0.00020236,2]
[425216632,1781610648000,-481.19297807,0.00020235,2]
[425216628,1781610648000,-500.0,0.00020235,2]
[425216630,1781610648000,-500.0,0.00020235,2]
[425216627,1781610648000,-500.0,0.00020235,2]
[425216629,1781610648000,-500.0,0.00020235,2]
[425216626,1781610648000,-500.0,0.00020235,2]
[425216633,1781610648000,-615.29292113,0.00020235,2]
[425216646,1781611055000,1000.0,7.6e-05,2]
[425216645,1781611055000,1000.0,7.6e-05,2]
[425216647,1781611055000,25263.06844008,7.6e-05,2]
[425216694,1781611831000,-2717.85612114,0.000115,2]
[425216698,1781611832000,-704.0695043,0.000115,2]
[425216721,1781611838000,-500.0,0.00013694,2]
[425216727,1781611838000,-500.0,0.00013694,2]
[425216729,1781611838000,-500.0,0.00013694,2]
[425216735,1781611838000,-500.0,0.00013694,2]
[425216731,1781611838000,-500.0,0.00013694,2]
[425216730,1781611838000,-500.0,0.00013694,2]
[425216732,1781611838000,-500.0,0.00013694,2]
[425216728,1781611838000,-500.0,0.00013694,2]
[425216736,1781611838000,-500.0,0.00013694,2]
[425216738,1781611838000,-66.21417346,0.00013694,2]
[425216733,1781611838000,-500.0,0.00013694,2]
[425216739,1781611838000,-500.0,0.00013694,2]
[425216744,1781611838000,-500.0,0.00013694,2]
[425216745,1781611838000,-500.0,0.00013694,2]
[425216742,1781611838000,-500.0,0.00013694,2]
[425216741,1781611838000,-500.0,0.00013694,2]
[425216747,1781611838000,-500.0,0.00013694,2]
[425216734,1781611838000,-500.0,0.00013694,2]
[425216723,1781611838000,-500.0,0.00013694,2]
[425216726,1781611838000,-500.0,0.00013694,2]
[425216709,1781611838000,-3251.84844815,0.00012,2]
[425216708,1781611838000,-16162.43018992,0.000115,2]
[425216711,1781611838000,-172.10419606,0.00013598,2]
[425216710,1781611838000,-2028.30881372,0.00013594,2]
[425216722,1781611838000,-500.0,0.00013694,2]
[425216718,1781611838000,-500.0,0.00013694,2]
[425216712,1781611838000,-500.0,0.00013694,2]
[425216724,1781611838000,-500.0,0.00013694,2]
[425216717,1781611838000,-500.0,0.00013694,2]
[425216714,1781611838000,-500.0,0.00013694,2]
[425216715,1781611838000,-500.0,0.00013694,2]
[425216720,1781611838000,-500.0,0.00013694,2]
[425216713,1781611838000,-500.0,0.00013694,2]
[425216719,1781611838000,-500.0,0.00013694,2]
[425216725,1781611838000,-500.0,0.00013694,2]
[425216740,1781611838000,-500.0,0.00013694,2]
[425216716,1781611838000,-500.0,0.00013694,2]
[425216743,1781611838000,-270.30307916,0.00013694,2]
[425216737,1781611838000,-433.78582654,0.00013694,2]
[425216750,1781611838000,-500.0,0.00013694,2]
[425216769,1781611838000,-500.0,0.00013694,2]
[425216771,1781611838000,-500.0,0.00013694,2]
[425216770,1781611838000,-500.0,0.00013694,2]
[425216773,1781611838000,-500.0,0.00013694,2]
[425216778,1781611838000,-500.0,0.00013694,2]
[425216775,1781611838000,-500.0,0.00013694,2]
[425216774,1781611838000,-500.0,0.00013694,2]
[425216772,1781611838000,-500.0,0.00013694,2]
[425216746,1781611838000,-500.0,0.00013694,2]
[425216777,1781611838000,-500.0,0.00013694,2]
[425216779,1781611838000,-500.0,0.00013694,2]
[425216781,1781611838000,-500.0,0.00013694,2]
[425216780,1781611838000,-500.0,0.00013694,2]
[425216782,1781611838000,-500.0,0.00013694,2]
[425216784,1781611838000,-500.0,0.00013694,2]
[425216783,1781611838000,-500.0,0.00013694,2]
[425216785,1781611838000,-500.0,0.00013694,2]
[425216768,1781611838000,-500.0,0.00013694,2]
[425216767,1781611838000,-500.0,0.00013694,2]
[425216776,1781611838000,-500.0,0.00013694,2]
[425216763,1781611838000,-500.0,0.00013694,2]
[425216764,1781611838000,-500.0,0.00013694,2]
[425216756,1781611838000,-500.0,0.00013694,2]
[425216754,1781611838000,-500.0,0.00013694,2]
[425216751,1781611838000,-500.0,0.00013694,2]
[425216752,1781611838000,-500.0,0.00013694,2]
[425216755,1781611838000,-500.0,0.00013694,2]
[425216753,1781611838000,-500.0,0.00013694,2]
[425216749,1781611838000,-153.6969948,0.00013694,2]
[425216748,1781611838000,-346.3030052,0.00013694,2]
[425216759,1781611838000,-500.0,0.00013694,2]
[425216758,1781611838000,-500.0,0.00013694,2]
[425216760,1781611838000,-500.0,0.00013694,2]
[425216762,1781611838000,-500.0,0.00013694,2]
[425216761,1781611838000,-500.0,0.00013694,2]
[425216765,1781611838000,-500.0,0.00013694,2]
[425216757,1781611838000,-500.0,0.00013694,2]
[425216766,1781611838000,-500.0,0.00013694,2]
[425216799,1781611839000,-542.98313546,0.00013697,2]
[425216796,1781611839000,-151.0,0.00013695,2]
[425216807,1781611839000,-500.0,0.00013698,2]
[425216803,1781611839000,-579.13958276,0.00013698,2]
[425216804,1781611839000,-502.62441811,0.00013698,2]
[425216806,1781611839000,-503.9092207,0.00013698,2]
[425216800,1781611839000,-500.0,0.00013698,2]
[425216797,1781611839000,-299.03733847,0.00013697,2]
[425216801,1781611839000,-500.0,0.00013698,2]
[425216802,1781611839000,-500.0,0.00013698,2]
[425216790,1781611839000,-500.0,0.00013694,2]
[425216789,1781611839000,-500.0,0.00013694,2]
[425216793,1781611839000,-500.0,0.00013694,2]
[425216792,1781611839000,-550.0,0.00013694,2]
[425216791,1781611839000,-500.0,0.00013694,2]
[425216788,1781611839000,-500.0,0.00013694,2]
[425216786,1781611839000,-500.0,0.00013694,2]
[425216787,1781611839000,-500.0,0.00013694,2]
[425216794,1781611839000,-556.48726979,0.00013694,2]
[425216795,1781611839000,-151.0,0.00013695,2]
[425216805,1781611839000,-502.20722564,0.00013698,2]
[425216798,1781611839000,-500.0,0.00013697,2]
[425216808,1781611839000,-500.0,0.00013698,2]
[425216821,1781611839000,-500.0,0.00013698,2]
[425216809,1781611839000,-504.22069536,0.00013698,2]
[425216831,1781611839000,-227.32235651,0.00013698,2]
[425216829,1781611839000,-500.0,0.00013698,2]
[425216832,1781611839000,-278.7684113,0.00013698,2]
[425216833,1781611839000,-101.39332103,0.00013698,2]
[425216825,1781611839000,-500.0,0.00013698,2]
[425216826,1781611839000,-500.0,0.00013698,2]
[425216828,1781611839000,-500.0,0.00013698,2]
[425216824,1781611839000,-500.0,0.00013698,2]
[425216827,1781611839000,-500.0,0.00013698,2]
[425216822,1781611839000,-503.53143992,0.00013698,2]
[425216823,1781611839000,-505.72172582,0.00013698,2]
[425216815,1781611839000,-500.0,0.00013698,2]
[425216818,1781611839000,-500.0,0.00013698,2]
[425216816,1781611839000,-503.13760683,0.00013698,2]
[425216813,1781611839000,-500.0,0.00013698,2]
[425216817,1781611839000,-500.0,0.00013698,2]
[425216814,1781611839000,-501.82378282,0.00013698,2]
[425216811,1781611839000,-500.0,0.00013698,2]
[425216810,1781611839000,-500.0,0.00013698,2]
[425216812,1781611839000,-500.0,0.00013698,2]
[425216820,1781611839000,-500.0,0.00013698,2]
[425216819,1781611839000,-516.93810313,0.00013698,2]
[425216839,1781611840000,-101.03671887,0.00013698,2]
[425216836,1781611840000,-400.00378385,0.00013698,2]
[425216838,1781611840000,-500.0,0.00013698,2]
[425216837,1781611840000,-475.55118748,0.00013698,2]
[425216877,1781611843000,-560.85454787,0.00013698,2]
[425216887,1781611843000,-500.0,0.00013698,2]
[425216879,1781611843000,-504.62075631,0.00013698,2]
[425216886,1781611843000,-543.05070263,0.00013698,2]
[425216880,1781611843000,-514.18041247,0.00013698,2]
[425216888,1781611843000,-500.0,0.00013698,2]
[425216890,1781611843000,-500.27168955,0.00013698,2]
[425216889,1781611843000,-512.96421709,0.00013698,2]
[425216885,1781611843000,-500.0,0.00013698,2]
[425216875,1781611843000,-500.0,0.00013698,2]
[425216881,1781611843000,-500.0,0.00013698,2]
[425216882,1781611843000,-501.3450745,0.00013698,2]
[425216884,1781611843000,-507.08577566,0.00013698,2]
[425216902,1781611843000,-500.0,0.00013698,2]
[425216892,1781611843000,-500.0,0.00013698,2]
[425216891,1781611843000,-500.0,0.00013698,2]
[425216895,1781611843000,-500.0,0.00013698,2]
[425216893,1781611843000,-525.38094354,0.00013698,2]
[425216896,1781611843000,-501.27332968,0.00013698,2]
[425216894,1781611843000,-517.90950705,0.00013698,2]
[425216899,1781611843000,-500.93700417,0.00013698,2]
[425216883,1781611843000,-1000.0,0.00013698,2]
[425216871,1781611843000,-500.0,0.00013698,2]
[425216897,1781611843000,-220.24342299,0.00013698,2]
[425216876,1781611843000,-500.0,0.00013698,2]
[425216851,1781611843000,-401.64502417,0.00013698,2]
[425216852,1781611843000,-502.97557591,0.00013698,2]
[425216854,1781611843000,-501.96595684,0.00013698,2]
[425216853,1781611843000,-503.97073152,0.00013698,2]
[425216855,1781611843000,-502.884896,0.00013698,2]
[425216856,1781611843000,-504.7211386,0.00013698,2]
[425216858,1781611843000,-508.34699067,0.00013698,2]
[425216867,1781611843000,-502.46440058,0.00013698,2]
[425216857,1781611843000,-503.50262055,0.00013698,2]
[425216868,1781611843000,-778.32,0.00013698,2]
[425216859,1781611843000,-502.53974438,0.00013698,2]
[425216860,1781611843000,-500.0,0.00013698,2]
[425216864,1781611843000,-449.02108271,0.00013698,2]
[425216863,1781611843000,-500.0,0.00013698,2]
[425216861,1781611843000,-502.72342611,0.00013698,2]
[425216862,1781611843000,-501.77523733,0.00013698,2]
[425216865,1781611843000,-500.0,0.00013698,2]
[425216866,1781611843000,-524.67913187,0.00013698,2]
[425216870,1781611843000,-588.58739236,0.00013698,2]
[425216869,1781611843000,-500.0,0.00013698,2]
[425216872,1781611843000,-500.0,0.00013698,2]
[425216873,1781611843000,-500.0,0.00013698,2]
[425216874,1781611843000,-500.0,0.00013698,2]
[425216878,1781611843000,-500.0,0.00013698,2]
[425216900,1781611843000,-500.0,0.00013698,2]
[425216917,1781611843000,-516.85131776,0.00013698,2]
[425216901,1781611843000,-502.30626715,0.00013698,2]
[425216939,1781611843000,-503.06697141,0.00013698,2]
[425216940,1781611843000,-487.35005145,0.00013698,2]
[425216935,1781611843000,-500.0,0.00013698,2]
[425216932,1781611843000,-511.1872362,0.00013698,2]
[425216931,1781611843000,-501.94737111,0.00013698,2]
[425216933,1781611843000,-505.08771621,0.00013698,2]
[425216938,1781611843000,-500.0,0.00013698,2]
[425216937,1781611843000,-500.0,0.00013698,2]
[425216934,1781611843000,-516.86462436,0.00013698,2]
[425216936,1781611843000,-513.90291307,0.00013698,2]
[425216930,1781611843000,-500.0,0.00013698,2]
[425216942,1781611843000,-500.0,0.00013698,2]
[425216945,1781611843000,-507.4880239,0.00013698,2]
[425216941,1781611843000,-500.0,0.00013698,2]
[425216944,1781611843000,-500.0,0.00013698,2]
[425216946,1781611843000,-501.71829662,0.00013698,2]
[425216947,1781611843000,-514.76051848,0.00013698,2]
[425216948,1781611843000,-511.49432951,0.00013698,2]
[425216951,1781611843000,-510.1731411,0.00013698,2]
[425216950,1781611843000,-490.0,0.00013698,2]
[425216949,1781611843000,-500.0,0.00013698,2]
[425216898,1781611843000,-501.49220674,0.00013698,2]
[425216952,1781611843000,-503.00471781,0.00013698,2]
[425216929,1781611843000,-549.92,0.00013698,2]
[425216943,1781611843000,-502.77404624,0.00013698,2]
[425216926,1781611843000,-515.82674832,0.00013698,2]
[425216903,1781611843000,-296.56380657,0.00013698,2]
[425216928,1781611843000,-500.0,0.00013698,2]
[425216908,1781611843000,-528.38,0.00013698,2]
[425216904,1781611843000,-500.0,0.00013698,2]
[425216914,1781611843000,-502.35214247,0.00013698,2]
[425216907,1781611843000,-501.36535231,0.00013698,2]
[425216906,1781611843000,-500.0,0.00013698,2]
[425216910,1781611843000,-500.0,0.00013698,2]
[425216915,1781611843000,-503.77081616,0.00013698,2]
[425216905,1781611843000,-503.67760182,0.00013698,2]
[425216913,1781611843000,-500.1027831,0.00013698,2]
[425216911,1781611843000,-506.29860738,0.00013698,2]
[425216912,1781611843000,-503.8964734,0.00013698,2]
[425216921,1781611843000,-534.40122522,0.00013698,2]
[425216909,1781611843000,-187.91315916,0.00013698,2]
[425216924,1781611843000,-500.70486644,0.00013698,2]
[425216925,1781611843000,-500.0,0.00013698,2]
[425216920,1781611843000,-500.0,0.00013698,2]
[425216922,1781611843000,-501.19100575,0.00013698,2]
[425216916,1781611843000,-505.11078103,0.00013698,2]
[425216918,1781611843000,-503.84301721,0.00013698,2]
[425216919,1781611843000,-500.0,0.00013698,2]
[425216927,1781611843000,-500.0,0.00013698,2]
[425216923,1781611843000,-514.88616837,0.00013698,2]
[425217003,1781611844000,-500.0,0.00013698,2]
[425217004,1781611844000,-501.79850322,0.00013698,2]
[425216994,1781611844000,-501.22472386,0.00013698,2]
[425216995,1781611844000,-500.0,0.00013698,2]
[425217005,1781611844000,-502.89999116,0.00013698,2]
[425216981,1781611844000,-505.46504923,0.00013698,2]
[425216993,1781611844000,-501.64932349,0.00013698,2]
[425216991,1781611844000,-512.52493085,0.00013698,2]
[425216988,1781611844000,-501.74272162,0.00013698,2]
[425216983,1781611844000,-252.56502452,0.00013698,2]
[425216996,1781611844000,-500.0,0.00013698,2]
[425216986,1781611844000,-500.0,0.00013698,2]
[425216992,1781611844000,-502.14347352,0.00013698,2]
[425217001,1781611844000,-502.35759553,0.00013698,2]
[425217015,1781611844000,-504.02234427,0.00013698,2]
[425216999,1781611844000,-502.95697517,0.00013698,2]
[425216998,1781611844000,-515.77445322,0.00013698,2]
[425216997,1781611844000,-503.13746691,0.00013698,2]
[425217002,1781611844000,-500.0,0.00013698,2]
[425217006,1781611844000,-467.13075525,0.00013698,2]
[425217008,1781611844000,-500.0,0.00013698,2]
[425217009,1781611844000,-502.86276277,0.00013698,2]
[425217010,1781611844000,-508.67092619,0.00013698,2]
[425217011,1781611844000,-544.95407695,0.00013698,2]
[425217014,1781611844000,-505.84305287,0.00013698,2]
[425217017,1781611844000,-508.41,0.00013698,2]
[425217016,1781611844000,-500.0,0.00013698,2]
[425216987,1781611844000,-518.78,0.00013698,2]
[425217000,1781611844000,-500.0,0.00013698,2]
[425216989,1781611844000,-501.94714226,0.00013698,2]
[425216961,1781611844000,-500.0,0.00013698,2]
[425216990,1781611844000,-502.75127744,0.00013698,2]
[425216953,1781611844000,-1000.0,0.00013698,2]
[425216954,1781611844000,-500.0,0.00013698,2]
[425216955,1781611844000,-507.78561547,0.00013698,2]
[425216958,1781611844000,-509.36361643,0.00013698,2]
[425216959,1781611844000,-506.50798825,0.00013698,2]
[425216963,1781611844000,-511.2620221,0.00013698,2]
[425217013,1781611844000,-500.0,0.00013698,2]
[425216957,1781611844000,-500.0,0.00013698,2]
[425216964,1781611844000,-503.35524687,0.00013698,2]
[425216956,1781611844000,-505.24934457,0.00013698,2]
[425216960,1781611844000,-500.71978655,0.00013698,2]
[425216965,1781611844000,-504.75186989,0.00013698,2]
[425216962,1781611844000,-505.77573649,0.00013698,2]
[425216968,1781611844000,-501.74030076,0.00013698,2]
[425216967,1781611844000,-503.94497623,0.00013698,2]
[425216977,1781611844000,-506.3723069,0.00013698,2]
[425216978,1781611844000,-500.0,0.00013698,2]
[425216969,1781611844000,-500.0,0.00013698,2]
[425216970,1781611844000,-508.21262576,0.00013698,2]
[425216975,1781611844000,-560.68664438,0.00013698,2]
[425216974,1781611844000,-507.7173346,0.00013698,2]
[425216979,1781611844000,-502.39948731,0.00013698,2]
[425216976,1781611844000,-441.66993005,0.00013698,2]
[425216971,1781611844000,-501.94274662,0.00013698,2]
[425216972,1781611844000,-500.0,0.00013698,2]
[425216973,1781611844000,-500.0,0.00013698,2]
[425216980,1781611844000,-500.0,0.00013698,2]
[425216982,1781611844000,-503.67067841,0.00013698,2]
[425216985,1781611844000,-432.28463391,0.00013698,2]
[425216984,1781611844000,-500.0,0.00013698,2]
[425217007,1781611844000,-500.18903227,0.00013698,2]
[425216966,1781611844000,-503.85010821,0.00013698,2]
[425217018,1781611844000,-500.0,0.00013698,2]
[425217050,1781611844000,-342.39545924,0.00013698,2]
[425217051,1781611844000,-500.0,0.00013698,2]
[425217048,1781611844000,-502.39393082,0.00013698,2]
[425217055,1781611844000,-503.73646138,0.00013698,2]
[425217054,1781611844000,-507.65388993,0.00013698,2]
[425217058,1781611844000,-502.26275153,0.00013698,2]
[425217060,1781611844000,-505.67002562,0.00013698,2]
[425217070,1781611844000,-507.81863105,0.00013698,2]
[425217066,1781611844000,-500.0,0.00013698,2]
[425217069,1781611844000,-500.0,0.00013698,2]
[425217059,1781611844000,-500.0,0.00013698,2]
[425217061,1781611844000,-503.67575133,0.00013698,2]
[425217063,1781611844000,-500.0,0.00013698,2]
[425217062,1781611844000,-500.0,0.00013698,2]
[425217068,1781611844000,-501.78391732,0.00013698,2]
[425217064,1781611844000,-501.84000062,0.00013698,2]
[425217071,1781611844000,-500.0,0.00013698,2]
[425217065,1781611844000,-559.51,0.00013698,2]
[425217067,1781611844000,-514.75182659,0.00013698,2]
[425217073,1781611844000,-500.0,0.00013698,2]
[425217075,1781611844000,-503.93976859,0.00013698,2]